Workbook

Sheet Producer Info
B2: Oklahoma Graze Out Decision Maker Oklahoma State University Oklahoma Cooperative Extension Service Oklahoma Agricultural Experiment Station Stillwater, Oklahoma Developed by Eric A. DeVuyst, Francis Epplin, Derrel Peel, Karen Taylor, Dept. of Ag. Econ Gerald Horn, David Lalman, Dept. of Animal Science
H4: Build date | J4: 2020-02-13
B6: NAME | C6: Spring 2019
B7: Date | C7: 2020-02-13
B9: The current price data is dated as | H9: =futures!A1 -> 2020-02-07
B10: Do you want to update price data?
B13: Interest rate | E13: % | F13: 0.04
B15: Anticipated date of first-hollow-stem | H15: 2020-03-05

Sheet Cattle info
B2: Enter cattle data
B3: Cattle gender | F3: Steers | I3: Purchase date | M3: 2019-11-15
B4: Weight at Purchase | F4: 450 | I4: Purchase price ($/cwt) | M4: 170
B5: Days in receiving program | F5: 35 | I5: Death loss (%) | M5: 0.017
B6: ADG in receiving program | F6: 1 | I6: Fall/winter stocking rate (hd/ac) | M6: 0.5
B7: ADG grazing wheat | F7: 2.25 | I7: Graze out stocking rate (hd/ac) | M7: 1.5
B8: Days in graze out | F8: 50
B9: ADG after first hollow stem | F9: 2.8
B11: Enter Cattle Futures and Basis ($/cwt)
B13: Do you want to load default price data?
B15: Month | F15: Mar | G15: Apr | H15: May
B16: Futures price ($/cwt) | F16: 135.1999969 | G16: 137.5 | H16: 139.5749969
E17: Basis ($/cwt)
B18: Weight Range | E18: Feb | F18: Mar | G18: Apr | H18: May
B19: 400 | D19: 500 | E19: 39.794 | F19: 44.882 | G19: 41.076 | H19: 35.678 | K19: Data entry continues below ↓.
B20: 500 | D20: 600 | E20: 25.32 | F20: 30.78 | G20: 27.484 | H20: 24.802
B21: 600 | D21: 700 | E21: 8.964 | F21: 13.804 | G21: 13.324 | H21: 10.688
B22: 700 | D22: 800 | E22: -0.378 | F22: 1.026 | G22: 0.926 | H22: 1.01
B23: 800 | D23: 900 | E23: -9.72 | F23: -11.752 | G23: -11.472 | H23: -8.668
B24: 900 | D24: 1000 | E24: -19.062 | F24: -24.53 | G24: -23.87 | H24: -18.346
B28: Enter Production Costs incurred during receiving and grazing
B29: Total lbs of gain | H29: =$F$5*$F$6+$F$7*('Producer Info'!$H$15-'Cattle info'!$M$3+H30) -> 253.25 | J29: =H29+7*F7 -> 269 | K29: =J29+7*F7 -> 284.75 | L29: =K29+7*F9 -> 304.35 | M29: =L29+7*F9 -> 323.95
B30: Days relative first hollow stem | H30: -14 | J30: -7 | K30: 0 | L30: 7 | M30: 14
B31: Final grazing date | H31: ='Producer Info'!$H$15+'Cattle info'!H30 -> 2020-02-20 | J31: ='Producer Info'!$H$15+'Cattle info'!J30 -> 2020-02-27 | K31: ='Producer Info'!$H$15+'Cattle info'!K30 -> 2020-03-05 | L31: ='Producer Info'!$H$15+'Cattle info'!L30 -> 2020-03-12 | M31: ='Producer Info'!$H$15+'Cattle info'!M30 -> 2020-03-19
B32: Veterinary expense | G32: $/hd | H32: 6 | J32: 6 | K32: 6 | L32: 6.5 | M32: 6.5
B33: Marketing expense | G33: $/hd | H33: 8 | J33: 8 | K33: 8 | L33: 8 | M33: 8
B34: Cost of gain excluding wheat expense | G34: $/lb | H34: 0.1032 | J34: 0.0977 | K34: 0.0927 | L34: 0.0873 | M34: 0.0826
B35: Other expenses | G35: $/hd | H35: 1 | J35: 1 | K35: 1 | L35: 1 | M35: 1

Sheet Wheat info
B2: Enter wheat production information
B5: Expected wheat price | F5: $/bu | G5: 4.5 | H5: Select owned or rented
B6: Wheat harvest cost | F6: $/ac | G6: =25+20*0.25+0.23*40 -> 39.2 | H6: Rented $/lb of gain
B7: Percent of acres grazed out | F7: % | G7: ='Cattle info'!M6/'Cattle info'!M7 -> 0.3333333333 | H7: Rental rate
B8: Expected wheat yield | F8: bu/ac | G8: 40 | H8: $/lb of gain | J8: 0.5
B9: Yield loss from grazing past first hollow stem
B10: Days relative to first hollow stem | G10: 0 | H10: 7 | I10: 14 | J10: 21
B11: Date when grazing terminates | G11: ='Cattle info'!K31 -> 2020-03-05 | H11: ='Cattle info'!L31 -> 2020-03-12 | I11: ='Cattle info'!M31 -> 2020-03-19 | J11: =I11+7 -> 2020-03-26
B12: Yield loss from extended grazing | F12: bu/ac | G12: 0 | H12: 8 | I12: 10 | J12: 12
B13: Yield loss from extended grazing--worst case* | F13: bu/ac | G13: 0 | H13: =G8*0.33 -> 13.2 | I13: =G8*0.58 -> 23.2 | J13: =G8*0.76 -> 30.4
B14: Yield loss from extended grazing--best case | F14: bu/ac | G14: 0 | H14: =G8*0.06 -> 2.4 | I14: =G8*0.14 -> 5.6 | J14: =G8*0.23 -> 9.2
B16: *OSU research shows that yield loss from extended grazing is sensitive to variety, stocking rate, weather and leaf area. So, estimates of damage vary with these condiions. A range of values is provided based on published results. For more information, see these references:
B19: Fieser, B.G., G.W. Horn, J.T. Edwards, and E.G. Krenzer, Jr. “Time of grazing termination in Dual-Purpose Winter Wheat Enterprises,” The Professional Animal Scientist 22 (2006):210-216.
B21: Redmon, L.A., E.G. Krenzer, Jr., D.J. Bernardo, and G.W. Horn. “Effect of wheat morphological stage at grazing termination on economic return,” Agronomy Journal 88 (1996):94-97.

Sheet cost_of_gain (hidden)
B2: ="Cost of Gain Analysis for " & 'Cattle info'!F3 -> Cost of Gain Analysis for Steers
B3: Receiving Weight (lb) | H3: ='Cattle info'!F4 -> 450 | I3: =H3 -> 450 | J3: =I3 -> 450 | K3: 450 | L3: 450
B4: End Weight | H4: =H3+'Cattle info'!F5*'Cattle info'!F6+'Cattle info'!F7*(-'Cattle info'!M3+'Cattle info'!H31) -> 703.25 | I4: =H4+7*'Cattle info'!F7 -> 719 | J4: =I4+7*'Cattle info'!F7 -> 734.75 | K4: =J4+7*'Cattle info'!F9 -> 754.35 | L4: =K4+'Cattle info'!F9*7 -> 773.95
B5: Receiving Program Expenses | F5: days in receiving | H5: ='Cattle info'!$F$5 -> 35 | I5: ='Cattle info'!$F$5 -> 35 | J5: ='Cattle info'!$F$5 -> 35 | K5: ='Cattle info'!$F$5 -> 35 | L5: ='Cattle info'!$F$5 -> 35
B6: Hay | D6: $/ton | E6: 80 | F6: lb/day/hd | H6: 10 | I6: 10 | J6: 10 | K6: 10 | L6: 10
B7: Supplement | D7: $/ton | E7: 400 | F7: lb/day/hd | H7: 2 | I7: 2 | J7: 2 | K7: 2 | L7: 2
B8: Mineral | D8: $/ton | E8: 300 | F8: ounces/day/hd | H8: 4 | I8: 4 | J8: 4 | K8: 4 | L8: 4
B9: Feed cost during receiving | F9: $/hd | H9: =$E$6*H6*H5/2000+$E$7/2000*H7*H5+$E$8/2000/128*H5*H8 -> 28.1640625 | I9: =$E$6*I6*I5/2000+$E$7/2000*I7*I5+$E$8/2000/128*I5*I8 -> 28.1640625 | J9: 28.1640625 | K9: 28.1640625 | L9: 28.1640625
B10: Transport to pasture | F10: $/hd | H10: 2.5 | I10: 2.5 | J10: 2.5 | K10: 2.5 | L10: 2.5
B11: Other receiving costs | F11: $/hd
B12: Total receiving program expenses | H12: =SUM(H9:H11) -> 30.6640625 | I12: =SUM(I9:I11) -> 30.6640625 | J12: 30.6640625 | K12: 30.6640625 | L12: 30.6640625
B13: Grazing Expenses | F13: days grazing | H13: ='Producer Info'!$H$15-'Cattle info'!$M$3+'Cattle info'!H30 -> 97 | I13: ='Producer Info'!$H$15-'Cattle info'!$M$3+'Cattle info'!J30 -> 104 | J13: ='Producer Info'!$H$15-'Cattle info'!$M$3+'Cattle info'!K30 -> 111 | K13: ='Producer Info'!$H$15-'Cattle info'!$M$3+'Cattle info'!L30 -> 118 | L13: ='Producer Info'!$H$15-'Cattle info'!$M$3+'Cattle info'!M30 -> 125
B14: Hay | D14: $/ton | E14: 80 | F14: lb/day/hd | H14: 2 | I14: 2 | J14: 2 | K14: 2 | L14: 2
B15: Supplement | D15: $/ton | E15: 400 | F15: lb/day/hd | H15: 0 | I15: 0 | J15: 0 | K15: 0 | L15: 0
B16: Mineral | D16: $/ton | E16: 300 | F16: ounces/day/hd | H16: 4 | I16: 4 | J16: 4 | K16: 4 | L16: 4
B17: Feed cost during receiving | F17: $/hd | H17: =$E$14*H14*H13/2000+$E$15/2000*H15*H13+$E$16/2000/128*H13*H16 -> 8.2146875 | I17: =$E$14*I14*I13/2000+$E$15/2000*I15*I13+$E$16/2000/128*I13*I16 -> 8.8075 | J17: 9.4003125 | K17: 9.993125 | L17: =$E$14*L14*L13/2000+$E$15/2000*L15*L13+$E$16/2000/128*L13*L16 -> 10.5859375
B18: Freight ($/head) | H18: 2 | I18: 2 | J18: 2 | K18: 2 | L18: 2
B19: Labor ($/head/day) | H19: 0.1 | I19: 0.1 | J19: 0.1 | K19: 0.1 | L19: 0.1
B20: Equipment and machinery ($/head) | H20: 3 | I20: 3 | J20: 3 | K20: 3 | L20: 3
B21: Management fee ($/head) | H21: 0 | I21: 0 | J21: 0 | K21: 0 | L21: 0
B22: Other ($/head) | H22: 0 | I22: 0 | J22: 0 | K22: 0 | L22: 0
B23: Total Grazing Expenses | H23: =SUM(H18:H22) -> 5.1 | I23: =SUM(I18:I22) -> 5.1 | J23: 5.1 | K23: 5.1 | L23: 5.1
B24: Total Expenses | H24: =H12+H23 -> 35.7640625 | I24: =I12+I23 -> 35.7640625 | J24: 35.7640625 | K24: 35.7640625 | L24: 35.7640625
B25: Gain (lb/head) | H25: =H4-H3 -> 253.25 | I25: =I4-I3 -> 269 | J25: 284.75 | K25: 304.35 | L25: 323.95
B26: Cost of gain ($/lb) | H26: =H24/H25 -> 0.141220385 | I26: =I24/I25 -> 0.1329519052 | J26: 0.1255981124 | K26: 0.1175096517 | L26: 0.110399946

Sheet Results
B3: Projected cattle returns
B4: Days relative to first hollow stem | D4: -14 | E4: -7 | F4: 0 | G4: 7 | H4: 14
B5: Date | D5: ='Producer Info'!$H$15+Results!D4 -> 2020-02-20 | E5: ='Producer Info'!$H$15+Results!E4 -> 2020-02-27 | F5: ='Producer Info'!$H$15+Results!F4 -> 2020-03-05 | G5: ='Producer Info'!$H$15+Results!G4 -> 2020-03-12 | H5: ='Producer Info'!$H$15+Results!H4 -> 2020-03-19
B6: Sale weight (lbs) | D6: ='Cattle info'!F4+'Cattle info'!H29 -> 703.25 | E6: ='Cattle info'!$F$4+'Cattle info'!J29 -> 719 | F6: ='Cattle info'!$F$4+'Cattle info'!K29 -> 734.75 | G6: ='Cattle info'!$F$4+'Cattle info'!L29 -> 754.35 | H6: ='Cattle info'!$F$4+'Cattle info'!M29 -> 773.95
B7: Sales price | D7: 140.374053 | E7: 142.8857655 | F7: 145.668063 | G7: 135.5805474 | H7: 133.1656644
B8: Sales revenue | D8: =D6*D7/100 -> 987.1805279 | E8: =E6*E7/100 -> 1027.348654 | F8: 1070.296093 | G8: 1022.75186 | H8: 1030.63566
B9: Expenses per head sold
B10: purchase | D10: =('Cattle info'!$F$4*'Cattle info'!$M$4/100/(1-'Cattle info'!$M$5)) -> 778.2299084 | E10: ='Cattle info'!$F$4*'Cattle info'!$M$4/100/(1-'Cattle info'!$M$5) -> 778.2299084 | F10: ='Cattle info'!$F$4*'Cattle info'!$M$4/100/(1-'Cattle info'!$M$5) -> 778.2299084 | G10: ='Cattle info'!$F$4*'Cattle info'!$M$4/100/(1-'Cattle info'!$M$5) -> 778.2299084 | H10: ='Cattle info'!$F$4*'Cattle info'!$M$4/100/(1-'Cattle info'!$M$5) -> 778.2299084
B11: vet, marketing and other | D11: =('Cattle info'!H32+'Cattle info'!H33+'Cattle info'!H35)/(1-'Cattle info'!$M$5) -> 15.25940997 | E11: ='Cattle info'!J32+'Cattle info'!J33+'Cattle info'!J35 -> 15 | F11: ='Cattle info'!K32+'Cattle info'!K33+'Cattle info'!K35 -> 15 | G11: ='Cattle info'!L32+'Cattle info'!L33+'Cattle info'!L35 -> 15.5 | H11: ='Cattle info'!M32+'Cattle info'!M33+'Cattle info'!M35 -> 15.5
B12: cost of gain | D12: ='Cattle info'!H29*'Cattle info'!H34+Lists!C32 -> 135.2604 | E12: =('Cattle info'!J29*'Cattle info'!J34)/(1-'Cattle info'!$M$5)+Lists!D32 -> 143.7358087 | F12: =('Cattle info'!K29*'Cattle info'!K34)/(1-'Cattle info'!$M$5)+Lists!E32 -> 151.727823 | G12: =('Cattle info'!L29*'Cattle info'!L34)/(1-'Cattle info'!$M$5)+Lists!F32 -> 161.7042523 | H12: =('Cattle info'!M29*'Cattle info'!M34)/(1-'Cattle info'!$M$5)+Lists!G32 -> 171.6960275
B13: interest | D13: =D10*'Producer Info'!$F$13/365*(-'Cattle info'!$M$3+Results!D5)+(Results!D11+D12)*'Producer Info'!$F$13/365/2*(-'Cattle info'!$M$3+Results!D5) -> 9.072713633 | E13: =E10*'Producer Info'!$F$13/365*(-'Cattle info'!$M$3+Results!E5)+(Results!E11+E12)*'Producer Info'!$F$13/365/2*(-'Cattle info'!$M$3+Results!E5) -> 9.774265483 | F13: =F10*'Producer Info'!$F$13/365*(-'Cattle info'!$M$3+Results!F5)+(Results!F11+F12)*'Producer Info'!$F$13/365/2*(-'Cattle info'!$M$3+Results!F5) -> 10.4807577 | G13: =G10*'Producer Info'!$F$13/365*(-'Cattle info'!$M$3+Results!G5)+(Results!G11+G12)*'Producer Info'!$F$13/365/2*(-'Cattle info'!$M$3+Results!G5) -> 11.20944439 | H13: =H10*'Producer Info'!$F$13/365*(-'Cattle info'!$M$3+Results!H5)+(Results!H11+H12)*'Producer Info'!$F$13/365/2*(-'Cattle info'!$M$3+Results!H5) -> 11.94284825
B14: Total Expenses | D14: =SUM(D10:D13) -> 937.822432 | E14: =SUM(E10:E13) -> 946.7399827 | F14: 955.4384891 | G14: 966.6436051 | H14: 977.3687842
B15: Returns to wheat pasture $/hd | D15: =D8-D14 -> 49.35809581 | E15: =E8-E14 -> 80.60867141 | F15: 114.8576039 | G15: 56.10825446 | H15: 53.26687537
B16: Returns to wheat pasture $/ac | D16: =D15*'Cattle info'!$M$6 -> 24.67904791 | E16: =E15*'Cattle info'!$M$6 -> 40.30433571 | F16: =F15*'Cattle info'!$M$6 -> 57.42880195 | G16: =G15*'Cattle info'!$M$6 -> 28.05412723 | H16: =H15*'Cattle info'!$M$6 -> 26.63343769
B17: Breakeven stocker price $/cwt | D17: =D14/D6*100 -> 133.3554827 | E17: =E14/E6*100 -> 131.6745456 | F17: 130.0358611 | G17: 128.142587 | H17: 126.2831945
B20: Projected cattle and wheat returns
B21: Days relative to first hollow stem | D21: -14 | E21: -7 | F21: 0 | G21: 7 | H21: 14
B22: Date | D22: ='Producer Info'!$H$15+Results!D21 -> 2020-02-20 | E22: ='Producer Info'!$H$15+Results!E21 -> 2020-02-27 | F22: ='Producer Info'!$H$15+Results!F21 -> 2020-03-05 | G22: ='Producer Info'!$H$15+Results!G21 -> 2020-03-12 | H22: ='Producer Info'!$H$15+Results!H21 -> 2020-03-19
B23: Returns from stockers $/hd | D23: =D15 -> 49.35809581 | E23: =E15 -> 80.60867141 | F23: 114.8576039 | G23: 56.10825446 | H23: 53.26687537
B24: Wheat yield bu/ac | D24: ='Wheat info'!$G$8 -> 40 | E24: ='Wheat info'!$G$8 -> 40 | F24: ='Wheat info'!$G$8 -> 40 | G24: =$F$24-'Wheat info'!H12 -> 32 | H24: =IF($F$24-'Wheat info'!I12>0,$F$24-'Wheat info'!I12,0) -> 30
B25: Wheat price | D25: ='Wheat info'!$G$5 -> 4.5 | E25: ='Wheat info'!$G$5 -> 4.5 | F25: ='Wheat info'!$G$5 -> 4.5 | G25: ='Wheat info'!$G$5 -> 4.5 | H25: ='Wheat info'!$G$5 -> 4.5
B26: Wheat revenue + rent* $/ac | D26: =D24*D25+Lists!C32 -> 289.125 | E26: =E24*E25+Lists!D32 -> 297 | F26: =F24*F25+Lists!E32 -> 304.875 | G26: =G24*G25+Lists!F32 -> 278.675 | H26: =H24*H25+Lists!G32 -> 279.475
B27: Harvest expense $/ac | D27: ='Wheat info'!$G$6 -> 39.2 | E27: ='Wheat info'!$G$6 -> 39.2 | F27: =IF(F26>0,'Wheat info'!$G$6,0) -> 39.2 | G27: =IF(G26>0,'Wheat info'!$G$6,0) -> 39.2 | H27: =IF(H26>0,'Wheat info'!$G$6,0) -> 39.2
B28: Wheat returns $/ac | D28: =D26-D27 -> 249.925 | E28: =E26-E27 -> 257.8 | F28: 265.675 | G28: 239.475 | H28: 240.275
B29: Returns to stockers & wheat $/ac | D29: =D23*'Cattle info'!$M$6+D28 -> 274.6040479 | E29: =E23*'Cattle info'!$M$6+E28 -> 298.1043357 | F29: =F23*'Cattle info'!$M$6+F28 -> 323.103802 | G29: =G23*'Cattle info'!$M$6+G28 -> 267.5291272 | H29: =H23*'Cattle info'!$M$6+H28 -> 266.9084377
B30: Maximum return $/ac | D30: =MAX(D29:H29) -> 323.103802
B31: Optimal selling date | D31: 2020-03-05
B34: Projected returns from graze out
B35: Days relative to first hollow stem | D35: 0 | E35: 7 | F35: 14
B36: Graze out start date | D36: ='Producer Info'!$H$15+Results!D35 -> 2020-03-05 | E36: ='Producer Info'!$H$15+Results!E35 -> 2020-03-12 | F36: ='Producer Info'!$H$15+Results!F35 -> 2020-03-19
B37: Sale date | D37: =D36+'Cattle info'!$F$8 -> 2020-04-24 | E37: =E36+'Cattle info'!$F$8 -> 2020-05-01 | F37: =F36+'Cattle info'!$F$8 -> 2020-05-08
B38: Sales weight | D38: =F6+'Cattle info'!F8*'Cattle info'!F9 -> 874.75 | E38: =G6+'Cattle info'!$F$8*'Cattle info'!$F$9 -> 894.35 | F38: =H6+'Cattle info'!$F$8*'Cattle info'!$F$9 -> 913.95
B39: Sales price | D39: 122.959495 | E39: 126.6148063 | F39: 115.0399148
B40: Stocker revenue | D40: =D39*D38/100 -> 1075.588183 | E40: 1132.37952 | F40: 1051.407301
B41: Expenses per head sold
B42: purchase | D42: =F10 -> 778.2299084 | E42: 778.2299084 | F42: 778.2299084
B43: vet, marketing and other | D43: 15 | E43: 15.5 | F43: 15.5
B44: cost of gain | D44: =(D38-'Cattle info'!$F$4)*'Cattle info'!K34+Lists!E33 -> 234.249325 | E44: =(E38-'Cattle info'!$F$4)*'Cattle info'!L34+Lists!F33 -> 243.466755 | F44: =(F38-'Cattle info'!$F$4)*'Cattle info'!M34+Lists!G33 -> 252.79727
B45: interest | D45: =(D44+D43)*'Producer Info'!$F$13/365/2+D42*'Producer Info'!$F$13/365*(Results!D37-'Cattle info'!$M$3) -> 13.74461807 | E45: =(E44+E43)*'Producer Info'!$F$13/365/2+E42*'Producer Info'!$F$13/365*(Results!E37-'Cattle info'!$M$3) -> 14.34214882 | F45: =(F44+F43)*'Producer Info'!$F$13/365/2+F42*'Producer Info'!$F$13/365*(Results!F37-'Cattle info'!$M$3) -> 14.93965837
B46: Total expenses per head sold | D46: =SUM(D42:D45) -> 1041.223852 | E46: 1051.538812 | F46: 1061.466837
B47: Stocker return $/hd | D47: =D40-D46 -> 34.364331 | E47: 80.84070798 | F47: -10.0595358
B48: Wheat yield bu/ac | D48: ='Wheat info'!$G$8*(1-'Wheat info'!$G$7) -> 26.66666667 | E48: =IF(('Wheat info'!$G$8-'Wheat info'!$G$12)*(1-'Wheat info'!$G$7)-'Wheat info'!H12>0,('Wheat info'!$G$8-'Wheat info'!$G$12)*(1-'Wheat info'!$G$7)-'Wheat info'!H12,0) -> 18.66666667 | F48: =IF(('Wheat info'!$G$8-'Wheat info'!$G$12)*(1-'Wheat info'!$G$7)-'Wheat info'!I12>0,('Wheat info'!$G$8-'Wheat info'!$G$12)*(1-'Wheat info'!$G$7)-'Wheat info'!I12,0) -> 16.66666667
B49: Wheat price $/bu | D49: ='Wheat info'!$G$5 -> 4.5 | E49: ='Wheat info'!$G$5 -> 4.5 | F49: ='Wheat info'!$G$5 -> 4.5
B50: Wheat revenue $/ac | D50: =D48*D49 -> 120 | E50: =E48*E49 -> 84 | F50: =F48*F49 -> 75
B51: Harvest expense $/ac | D51: =IF(D48>0,'Wheat info'!$G$6*(1-'Wheat info'!$G$7),0) -> 26.13333333 | E51: =IF(E48>0,'Wheat info'!$G$6*(1-'Wheat info'!$G$7),0) -> 26.13333333 | F51: =IF(F48>0,'Wheat info'!$G$6*(1-'Wheat info'!$G$7),0) -> 26.13333333
B52: Wheat returns $/ac | D52: =D50-D51 -> 93.86666667 | E52: =E50-E51 -> 57.86666667 | F52: =F50-F51 -> 48.86666667
B53: Returns to stockers & wheat $/ac | D53: =D47*'Cattle info'!$M$6+D52 -> 111.0488322 | E53: =E47*'Cattle info'!$M$6+E52 -> 98.28702066 | F53: =F47*'Cattle info'!$M$6+F52 -> 43.83689877
B54: Maximum return $/ac | D54: =MAX(D53:F53) -> 111.0488322
B55: Optimal selling date | D55: 2020-04-24
B56: Optimal graze out start date | D56: 2020-03-05
B59: *Wheat rent includes opportunity cost if both cattle and wheat are owned.

Sheet futures (hidden)
A1: 2020-02-07 | D1: Feeder Cattle Futures
C2: DAILY
C3: JAN | D3: MAR | E3: APR | F3: MAY | G3: AUG | H3: SEP | I3: OCT | J3: NOV | K3: Nearby
C4: 1 | D4: 3 | E4: 4 | F4: 5 | G4: 8 | H4: 9 | I4: 10 | J4: 11
A5: 2020-02-07 | C5: 147.3000031 | D5: 135.1999969 | E5: 137.5 | F5: 139.5749969 | G5: 147.875 | H5: 149.4750061 | I5: 150.3500061 | J5: 150.8500061 | K5: 150.3500061
D10: Live Cattle Futures | O10: Nearby
C11: JAN | D11: FEB | E11: MAR | F11: APR | G11: MAY | H11: JUN | I11: JUL | J11: AUG | K11: SEP | L11: OCT | M11: NOV | N11: DEC | O11: (even
C12: 1 | D12: 2 | E12: 3 | F12: 4 | G12: 5 | H12: 6 | I12: 7 | J12: 8 | K12: 9 | L12: 10 | M12: 11 | N12: 12 | O12: mnth only)
A13: 2020-02-07 | C13: 121.3249969 | E13: 119.8000031 | G13: 111.2750015 | I13: 109.875 | K13: 113.0999985 | M13: 117.5999985 | N13: 121.3249969 | O13: 121.3249969

Sheet basis (hidden)
A1: Steer basis
A2: 2009-2013 | B2: Jan | C2: Feb | D2: Mar | E2: Apr | F2: May | G2: Jun | H2: Jul | I2: Aug | J2: Sep | K2: Oct | L2: Nov | M2: Dec | N2: steers
A3: 499 | B3: 38.464 | C3: 39.794 | D3: 44.882 | E3: 41.076 | F3: 35.678 | G3: 34.026 | H3: 24.54 | I3: 35.036 | J3: 31.078 | K3: 33.766 | L3: 44.49 | M3: 51.088
A4: 599 | B4: 22.052 | C4: 25.32 | D4: 30.78 | E4: 27.484 | F4: 24.802 | G4: 19.242 | H4: 17.084 | I4: 19.964 | J4: 12.878 | K4: 16.164 | L4: 24.032 | M4: 25.57
A5: 699 | B5: 6.734 | C5: 8.964 | D5: 13.804 | E5: 13.324 | F5: 10.688 | G5: 6.296 | H5: 7.022 | I5: 8.6 | J5: 7.982 | K5: 6.068 | L5: 7.5 | M5: 10.812
A6: 799 | B6: -0.066 | C6: -0.378 | D6: 1.026 | E6: 0.926 | F6: 1.01 | G6: -1.6 | H6: 0.404 | I6: 1.836 | J6: 1.478 | K6: 1.152 | L6: 0.948 | M6: 0.976
A8: 2010-2014 | B8: Jan | C8: Feb | D8: Mar | E8: Apr | F8: May | G8: Jun | H8: Jul | I8: Aug | J8: Sep | K8: Oct | L8: Nov | M8: Dec | N8: heifers
A9: 499 | B9: 10.142 | C9: 16.344 | D9: 20.602 | E9: 17.646 | F9: 15.878 | G9: 8.844 | H9: 8.604 | I9: 12.836 | J9: 9.642 | K9: 9.304 | L9: 16.69 | M9: 19.158
A10: 599 | B10: 1.19 | C10: 5.762 | D10: 10.17 | E10: 8.268 | F10: 6.716 | G10: 2.024 | H10: 0.502 | I10: 4.016 | J10: 0.332 | K10: -1.882 | L10: 3.656 | M10: 4.96
A11: 699 | B11: -5.396 | C11: -4.508 | D11: -2.06 | E11: -2.38 | F11: -2.892 | G11: -5.216 | H11: -3.966 | I11: -5.216 | J11: -3.46 | K11: -4.914 | L11: -5.466 | M11: -3.146
A12: 799 | B12: -10.04 | C12: -10.712 | D12: -11.182 | E12: -11.182 | F12: -10.402 | G12: -12.746 | H12: -10.996 | I12: -9.788 | J12: -10.99 | K12: -10.994 | L12: -10.81 | M12: -10.012

Sheet Lists (hidden)
B3: days to FHS | D3: =-'Producer Info'!C7+'Producer Info'!H15 -> 21
B4: days on farm | D4: =MAX(-'Cattle info'!M3+'Producer Info'!C7,0) -> 90
B5: day grazed | D5: =MAX(D4-'Cattle info'!F5,0) -> 55
A7: 1 | B7: Jan
A8: 3 | B8: Mar
A9: 4 | B9: Apr
A10: 5 | B10: May
A11: 8 | B11: Aug
A12: 9 | B12: Sept
A13: 10 | B13: Oct
A14: 11 | B14: Nov
A16: download price data
A18: days grazing | C18: ='Producer Info'!H15-'Cattle info'!M3-'Cattle info'!F5 -> 76
A19: grazing rent | C19: -14 | D19: -7 | E19: 0 | F19: 7 | G19: 14
A20: pre-graze out adg | C20: 0 | D20: 0 | E20: 0 | F20: 35 | G20: 70
A21: POST FHS ADG | C21: ='Cattle info'!F9 -> 2.8 | D21: =C21 -> 2.8 | E21: =D21 -> 2.8 | F21: 2.8 | G21: 2.8
A22: Stock rate pre | C22: 1 | D22: =C22 -> 1 | E22: 1 | F22: 1 | G22: 1
A23: Stocking rate grazeout | C23: 1 | D23: =C23 -> 1 | E23: 1 | F23: 1 | G23: 1
A24: per ac gains pre | C24: =C20*C22 -> 0 | D24: =D20*D22 -> 0 | E24: 0 | F24: =F21*F22 -> 2.8 | G24: =G21*G22 -> 2.8
A25: per ac gains graze | E25: =E24 -> 0 | F25: =F21*F23 -> 2.8 | G25: =G21*G23 -> 2.8
A26: owned opp cost | C26: 0 | D26: 0 | E26: 0 | F26: ='Wheat info'!J8*7 -> 3.5 | G26: =F26*2 -> 7
A27: rent $/cwt/month | C27: =($C$18+C19)*'Cattle info'!$F$4/100*'Wheat info'!$J$8*'Cattle info'!$M$6/30.5 -> 2.286885246 | D27: =($C$18+D19)*'Cattle info'!$F$4/100*'Wheat info'!$J$8*'Cattle info'!$M$6/30.5 -> 2.545081967 | E27: =($C$18+E19)*'Cattle info'!$F$4/100*'Wheat info'!$J$8*'Cattle info'!$M$6/30.5 -> 2.803278689 | F27: =($C$18+F19)*'Cattle info'!$F$4/100*'Wheat info'!$J$8*'Cattle info'!$M$6/30.5 -> 3.06147541 | G27: =($C$18+G19)*'Cattle info'!$F$4/100*'Wheat info'!$J$8*'Cattle info'!$M$6/30.5 -> 3.319672131 | H27: pre
A28: rent $/lb of gain | C28: =(Results!D6-'Cattle info'!$F$4-'Cattle info'!$F$5*'Cattle info'!$F$6)*'Wheat info'!$J$8 -> 109.125 | D28: =(Results!E6-'Cattle info'!$F$4-'Cattle info'!$F$5*'Cattle info'!$F$6)*'Wheat info'!$J$8 -> 117 | E28: =(Results!F6-'Cattle info'!$F$4-'Cattle info'!$F$5*'Cattle info'!$F$6)*'Wheat info'!$J$8 -> 124.875 | F28: =(Results!G6-'Cattle info'!$F$4-'Cattle info'!$F$5*'Cattle info'!$F$6)*'Wheat info'!$J$8 -> 134.675 | G28: =(Results!H6-'Cattle info'!$F$4-'Cattle info'!$F$5*'Cattle info'!$F$6)*'Wheat info'!$J$8 -> 144.475 | H28: pre
A29: rent $/cwt/month | E29: =E27 -> 2.803278689 | F29: =F27 -> 3.06147541 | G29: =G27 -> 3.319672131 | H29: graze out
A30: rent $/lb of gain | E30: =(Results!D38-'Cattle info'!$F$4-'Cattle info'!$F$5*'Cattle info'!$F$6)*'Wheat info'!$J$8 -> 194.875 | F30: =(Results!E38-'Cattle info'!$F$4-'Cattle info'!$F$5*'Cattle info'!$F$6)*'Wheat info'!$J$8 -> 204.675 | G30: =(Results!F38-'Cattle info'!$F$4-'Cattle info'!$F$5*'Cattle info'!$F$6)*'Wheat info'!$J$8 -> 214.475 | H30: graze out
A32: RENT PRE | C32: =IF('Wheat info'!$H$6="Owned", Lists!C$26,IF('Wheat info'!$H$6="Rented $/cwt/month",Lists!C27,Lists!C28)) -> 109.125 | D32: =IF('Wheat info'!$H$6="Owned", Lists!D$26,IF('Wheat info'!$H$6="Rented $/cwt/month",Lists!D27,Lists!D28)) -> 117 | E32: =IF('Wheat info'!$H$6="Owned", Lists!E$26,IF('Wheat info'!$H$6="Rented $/cwt/month",Lists!E27,Lists!E28)) -> 124.875 | F32: =IF('Wheat info'!$H$6="Owned", Lists!F$26,IF('Wheat info'!$H$6="Rented $/cwt/month",Lists!F27,Lists!F28)) -> 134.675 | G32: =IF('Wheat info'!$H$6="Owned", Lists!G$26,IF('Wheat info'!$H$6="Rented $/cwt/month",Lists!G27,Lists!G28)) -> 144.475
A33: RENT GRAZEOUT | E33: =IF('Wheat info'!$H$6="Owned", Lists!E$26,IF('Wheat info'!$H$6="Rented $/cwt/month",Lists!E29,Lists!E30)) -> 194.875 | F33: =IF('Wheat info'!$H$6="Owned", Lists!F$26,IF('Wheat info'!$H$6="Rented $/cwt/month",Lists!F29,Lists!F30)) -> 204.675 | G33: =IF('Wheat info'!$H$6="Owned", Lists!G$26,IF('Wheat info'!$H$6="Rented $/cwt/month",Lists!G29,Lists!G30)) -> 214.475

Sheet Sheet1 (hidden)

Sheet Sheet2 (hidden)
